[Event "MCR rapid mládeže 2023 U16"]
[Site "Harachov, Czech Republic"]
[Date "2023.09.09"]
[Round "6.4"]
[White "Hrbek, Jachym"]
[Black "Setina, Vaclav"]
[Result "1/2-1/2"]
[TimeControl "20min+5s/move"]
[WhiteElo "1769"]
[BlackElo "1876"]

1. e4 {[%clk 00:20:02]} {[%emt 00:00:07]} c5 {[%clk 00:20:07]} {[%emt
00:00:03]} 2. b4 {[%clk 00:20:01]} {[%emt 00:00:07]} cxb4 {[%clk 00:20:05]}
{[%emt 00:00:07]} 3. a3 {[%clk 00:20:04]} {[%emt 00:00:01]} bxa3 {[%clk
00:20:02]} {[%emt 00:00:08]} 4. Bxa3 {[%clk 00:20:03]} {[%emt 00:00:05]} d6
{[%clk 00:19:49]} {[%emt 00:00:18]} 5. d4 {[%clk 00:19:49]} {[%emt 00:00:18]}
g6 {[%clk 00:19:31]} {[%emt 00:00:23]} 6. f4 {[%clk 00:19:22]} {[%emt
00:00:32]} Bg7 {[%clk 00:19:31]} {[%emt 00:00:05]} 7. Nf3 {[%clk 00:19:24]}
{[%emt 00:00:03]} Nc6 {[%clk 00:19:19]} {[%emt 00:00:18]} 8. c3 {[%clk
00:18:50]} {[%emt 00:00:39]} Nh6 {[%clk 00:18:50]} {[%emt 00:00:34]} 9. Bd3
{[%clk 00:18:20]} {[%emt 00:00:35]} O-O {[%clk 00:18:44]} {[%emt 00:00:12]} 10.
O-O {[%clk 00:18:15]} {[%emt 00:00:09]} d5 {[%clk 00:15:58]} {[%emt 00:02:52]}
11. Nbd2 {[%clk 00:16:38]} {[%emt 00:01:42]} dxe4 {[%clk 00:13:58]} {[%emt
00:02:05]} 12. Nxe4 {[%clk 00:16:32]} {[%emt 00:00:10]} b6 {[%clk 00:13:33]}
{[%emt 00:00:30]} 13. Kh1 {[%clk 00:15:13]} {[%emt 00:01:24]} Bb7 {[%clk
00:13:37]} {[%emt 00:00:01]} 14. Neg5 {[%clk 00:14:29]} {[%emt 00:00:48]} Qd7
{[%clk 00:11:02]} {[%emt 00:02:41]} 15. Ne5 {[%clk 00:10:57]} {[%emt 00:03:38]}
Nxe5 {[%clk 00:10:52]} {[%emt 00:00:15]} 16. fxe5 {[%clk 00:10:57]} {[%emt
00:00:04]} Qc6 {[%clk 00:05:58]} {[%emt 00:05:00]} 17. Be4 {[%clk 00:10:48]}
{[%emt 00:00:13]} Qc7 {[%clk 00:05:56]} {[%emt 00:00:08]} 18. Bxb7 {[%clk
00:10:40]} {[%emt 00:00:11]} Qxb7 {[%clk 00:05:59]} {[%emt 00:00:04]} 19. Qb3
{[%clk 00:10:19]} {[%emt 00:00:26]} Nf5 {[%clk 00:04:08]} {[%emt 00:01:56]} 20.
Rf3 {[%clk 00:08:48]} {[%emt 00:01:36]} h6 {[%clk 00:03:15]} {[%emt 00:00:59]}
21. Nh3 {[%clk 00:08:29]} {[%emt 00:00:23]} Rfd8 {[%clk 00:02:40]} {[%emt
00:00:40]} 22. Raf1 {[%clk 00:05:46]} {[%emt 00:02:47]} e6 {[%clk 00:02:34]}
{[%emt 00:00:11]} 23. Nf4 {[%clk 00:04:56]} {[%emt 00:00:55]} h5 {[%clk
00:01:50]} {[%emt 00:00:50]} 24. d5 {[%clk 00:02:55]} {[%emt 00:02:07]} Rxd5
{[%clk 00:01:06]} {[%emt 00:00:48]} 25. Nxd5 {[%clk 00:02:30]} {[%emt
00:00:30]} Qxd5 {[%clk 00:01:09]} {[%emt 00:00:02]} 26. Qxd5 {[%clk 00:01:28]}
{[%emt 00:01:08]} exd5 {[%clk 00:01:13]} {[%emt 00:00:01]} 27. Rd1 {[%clk
00:01:06]} {[%emt 00:00:26]} Rd8 {[%emt 00:01:42]} 28. Bc1 {[%emt 00:00:18]}
1/2-1/2

[Event "MCR rapid mládeže 2023 U16"]
[Site "Harachov, Czech Republic"]
[Date "2023.09.09"]
[Round "6.5"]
[White "Sotek, Simon"]
[Black "Vana, Jan"]
[Result "1-0"]
[TimeControl "20min+5s/move"]
[WhiteElo "1526"]
[BlackElo "1681"]

1. Nf3 {[%clk 00:19:52]} {[%emt 00:00:17]} Nf6 {[%clk 00:20:08]} {[%emt
00:00:03]} 2. Nc3 {[%clk 00:19:49]} {[%emt 00:00:07]} b6 {[%clk 00:18:37]}
{[%emt 00:01:36]} 3. e4 {[%clk 00:19:42]} {[%emt 00:00:12]} Bb7 {[%clk
00:18:25]} {[%emt 00:00:17]} 4. e5 {[%clk 00:18:20]} {[%emt 00:01:27]} Ne4
{[%clk 00:17:35]} {[%emt 00:00:55]} 5. Nxe4 {[%clk 00:16:37]} {[%emt 00:01:48]}
Bxe4 {[%clk 00:17:39]} {[%emt 00:00:01]} 6. Bc4 {[%clk 00:16:32]} {[%emt
00:00:10]} e6 {[%clk 00:17:23]} {[%emt 00:00:22]} 7. d4 {[%clk 00:15:23]}
{[%emt 00:01:14]} d6 {[%clk 00:14:16]} {[%emt 00:03:13]} 8. O-O {[%clk
00:14:51]} {[%emt 00:00:36]} Be7 {[%clk 00:09:35]} {[%emt 00:04:46]} 9. Re1
{[%clk 00:14:08]} {[%emt 00:00:48]} d5 {[%clk 00:07:53]} {[%emt 00:01:47]} 10.
Bd3 {[%clk 00:13:59]} {[%emt 00:00:14]} Bg6 {[%clk 00:07:34]} {[%emt 00:00:25]}
11. c3 {[%clk 00:13:43]} {[%emt 00:00:21]} O-O {[%clk 00:07:33]} {[%emt
00:00:06]} 12. Be3 {[%clk 00:12:31]} {[%emt 00:01:16]} c5 {[%clk 00:07:00]}
{[%emt 00:00:40]} 13. Qd2 {[%clk 00:11:26]} {[%emt 00:01:09]} c4 {[%clk
00:06:35]} {[%emt 00:00:30]} 14. Bc2 {[%clk 00:10:51]} {[%emt 00:00:38]} Nc6
{[%clk 00:06:21]} {[%emt 00:00:21]} 15. b3 {[%clk 00:10:35]} {[%emt 00:00:21]}
b5 {[%clk 00:05:49]} {[%emt 00:00:38]} 16. a4 {[%clk 00:10:10]} {[%emt
00:00:30]} cxb3 {[%clk 00:04:12]} {[%emt 00:01:42]} 17. Bxg6 {[%clk 00:09:57]}
{[%emt 00:00:17]} hxg6 {[%clk 00:04:15]} {[%emt 00:00:02]} 18. axb5 {[%clk
00:09:59]} {[%emt 00:00:03]} Na5 {[%clk 00:04:19]} {[%emt 00:00:01]} 19. Qd3
{[%clk 00:09:36]} {[%emt 00:00:27]} Qb6 {[%clk 00:02:58]} {[%emt 00:01:26]} 20.
Bg5 {[%clk 00:07:12]} {[%emt 00:02:29]} Bd8 {[%clk 00:00:29]} {[%emt 00:02:34]}
21. Bxd8 {[%clk 00:05:26]} {[%emt 00:01:51]} Qxd8 {[%clk 00:00:33]} {[%emt
00:00:01]} 22. Ng5 {[%clk 00:05:21]} {[%emt 00:00:09]} Qxg5 {[%clk 00:00:14]}
{[%emt 00:00:24]} 23. Rxa5 {[%emt 00:00:03]} Rfc8 {[%clk 00:00:12]} {[%emt
00:00:05]} 24. Rb1 {[%clk 00:02:46]} {[%emt 00:02:43]} b2 {[%clk 00:00:15]}
{[%emt 00:00:04]} 25. Qc2 {[%clk 00:02:29]} {[%emt 00:00:21]} Qf5 {[%clk
00:00:13]} {[%emt 00:00:08]} 26. Qxf5 {[%clk 00:02:19]} {[%emt 00:00:14]} gxf5
{[%clk 00:00:16]} {[%emt 00:00:02]} 27. Ra3 {[%clk 00:02:20]} {[%emt 00:00:04]}
Rc7 {[%clk 00:00:09]} {[%emt 00:00:13]} 28. Rxb2 {[%clk 00:02:16]} {[%emt
00:00:09]} Rac8 {[%clk 00:00:13]} 29. Rbb3 {[%clk 00:01:56]} {[%emt 00:00:26]}
Kf8 {[%clk 00:00:15]} {[%emt 00:00:04]} 30. Kf1 {[%clk 00:01:57]} {[%emt
00:00:03]} Ke7 {[%clk 00:00:19]} 31. Ke2 {[%clk 00:02:01]} {[%emt 00:00:02]}
Rh8 {[%clk 00:00:12]} {[%emt 00:00:12]} 32. h3 {[%clk 00:02:00]} {[%emt
00:00:06]} g5 {[%clk 00:00:17]} 33. Ra5 {[%clk 00:01:57]} {[%emt 00:00:08]}
Rhc8 {[%clk 00:00:08]} {[%emt 00:00:14]} 34. Kd3 {[%clk 00:01:40]} {[%emt
00:00:21]} Rb7 {[%clk 00:00:13]} 35. Rba3 {[%emt 00:00:10]} Rcc7 36. Rb3 {[%clk
00:01:22]} {[%emt 00:00:18]} Rc8 {[%clk 00:00:13]} {[%emt 00:00:10]} 37. g3
{[%clk 00:01:15]} {[%emt 00:00:11]} Rh8 {[%clk 00:00:13]} {[%emt 00:00:05]} 38.
Rba3 {[%clk 00:01:15]} {[%emt 00:00:05]} Rxh3 {[%clk 00:00:08]} {[%emt
00:00:10]} 39. Rxa7 {[%emt 00:00:01]} Rxa7 40. Rxa7+ {[%clk 00:01:23]} {[%emt
00:00:01]} Kd8 {[%clk 00:00:12]} {[%emt 00:00:05]} 41. b6 {[%clk 00:00:46]}
{[%emt 00:00:42]} f4 {[%clk 00:00:10]} {[%emt 00:00:07]} 42. Ra8+ {[%clk
00:00:49]} {[%emt 00:00:02]} Kd7 {[%clk 00:00:08]} {[%emt 00:00:07]} 43. b7
{[%clk 00:00:40]} {[%emt 00:00:14]} fxg3 {[%clk 00:00:12]} 44. fxg3 {[%clk
00:00:44]} {[%emt 00:00:02]} Rxg3+ {[%clk 00:00:13]} {[%emt 00:00:04]} 45. Kc2
{[%clk 00:00:47]} Rg2+ {[%clk 00:00:11]} {[%emt 00:00:07]} 46. Kb3 {[%clk
00:00:52]} {[%emt 00:00:01]} Rg1 {[%clk 00:00:13]} {[%emt 00:00:02]} 47. b8=Q
{[%clk 00:00:21]} {[%emt 00:00:36]} Rb1+ {[%clk 00:00:17]} {[%emt 00:00:01]} 48.
Kc2 {[%clk 00:00:25]} Rxb8 {[%clk 00:00:21]} {[%emt 00:00:01]} 49. Rxb8 {[%emt
00:00:02]} Ke7 {[%clk 00:00:24]} 50. Rb7+ {[%clk 00:00:31]} {[%emt 00:00:03]}
Kf8 {[%clk 00:00:27]} {[%emt 00:00:02]} 51. Kd3 {[%clk 00:00:35]} Kg7 {[%emt
00:00:01]} 52. Ke3 Kg6 {[%clk 00:00:34]} 53. Kf3 {[%clk 00:00:45]} f5 {[%clk
00:00:37]} {[%emt 00:00:03]} 54. Re7 {[%clk 00:00:40]} {[%emt 00:00:09]} g4+
{[%clk 00:00:28]} {[%emt 00:00:14]} 55. Kf4 {[%clk 00:00:42]} {[%emt 00:00:03]}
Kh5 {[%clk 00:00:16]} {[%emt 00:00:17]} 56. Rxe6 {[%clk 00:00:44]} {[%emt
00:00:04]} g3 {[%clk 00:00:20]} 57. Kxf5 {[%clk 00:00:46]} {[%emt 00:00:02]} g2
{[%clk 00:00:22]} {[%emt 00:00:03]} 58. Rg6 {[%clk 00:00:48]} {[%emt 00:00:03]}
1-0

[Event "MCR rapid mládeže 2023 U16"]
[Site "Harachov, Czech Republic"]
[Date "2023.09.09"]
[Round "6.6"]
[White "Bludsky, Hynek"]
[Black "Martirosyan, David"]
[Result "1-0"]
[TimeControl "20min+5s/move"]
[WhiteElo "1547"]
[BlackElo "1861"]

1. e4 {[%clk 00:20:08]} {[%emt 00:00:02]} c5 {[%clk 00:20:09]} {[%emt
00:00:01]} 2. Nf3 {[%clk 00:20:11]} {[%emt 00:00:02]} d6 {[%clk 00:20:13]} 3.
d4 {[%clk 00:20:15]} {[%emt 00:00:01]} cxd4 {[%clk 00:20:17]} {[%emt 00:00:01]}
4. Nxd4 {[%clk 00:20:19]} {[%emt 00:00:02]} Nf6 {[%clk 00:20:22]} 5. Nc3 {[%clk
00:20:16]} {[%emt 00:00:08]} a6 {[%clk 00:20:25]} {[%emt 00:00:02]} 6. h3
{[%clk 00:20:17]} {[%emt 00:00:04]} e5 {[%clk 00:20:14]} {[%emt 00:00:17]} 7.
Nde2 {[%clk 00:20:21]} h5 {[%clk 00:20:16]} {[%emt 00:00:03]} 8. g3 {[%clk
00:19:08]} {[%emt 00:01:19]} Be6 {[%clk 00:20:07]} {[%emt 00:00:14]} 9. Bg2
{[%clk 00:19:10]} {[%emt 00:00:03]} Be7 {[%clk 00:20:09]} {[%emt 00:00:04]} 10.
O-O {[%clk 00:19:09]} {[%emt 00:00:05]} Nbd7 {[%clk 00:19:56]} {[%emt
00:00:18]} 11. Be3 {[%clk 00:18:34]} {[%emt 00:00:40]} b5 {[%clk 00:19:53]}
{[%emt 00:00:08]} 12. a3 {[%clk 00:18:28]} {[%emt 00:00:11]} Qc7 {[%clk
00:19:33]} {[%emt 00:00:26]} 13. f4 {[%clk 00:16:43]} {[%emt 00:01:49]} exf4
{[%clk 00:18:02]} {[%emt 00:01:36]} 14. Nxf4 {[%clk 00:16:25]} {[%emt
00:00:24]} Bc4 {[%clk 00:18:02]} {[%emt 00:00:04]} 15. Rf2 {[%clk 00:14:43]}
{[%emt 00:01:47]} Ne5 {[%clk 00:17:22]} {[%emt 00:00:45]} 16. Ncd5 {[%clk
00:13:37]} {[%emt 00:01:11]} Nxd5 {[%clk 00:17:16]} {[%emt 00:00:11]} 17. exd5
{[%clk 00:13:15]} {[%emt 00:00:27]} b4 {[%clk 00:15:28]} {[%emt 00:01:54]} 18.
axb4 {[%clk 00:12:53]} {[%emt 00:00:26]} h4 {[%clk 00:15:32]} {[%emt 00:00:02]}
19. g4 {[%clk 00:12:35]} {[%emt 00:00:23]} Bb5 {[%clk 00:14:36]} {[%emt
00:01:02]} 20. b3 {[%clk 00:11:38]} {[%emt 00:01:02]} Qc3 {[%clk 00:14:07]}
{[%emt 00:00:33]} 21. Bd2 {[%clk 00:11:01]} {[%emt 00:00:43]} Qd4 {[%clk
00:13:30]} {[%emt 00:00:41]} 22. c3 {[%clk 00:10:37]} {[%emt 00:00:30]} Qb6
{[%clk 00:13:19]} {[%emt 00:00:16]} 23. c4 {[%clk 00:10:38]} {[%emt 00:00:04]}
Bd7 {[%clk 00:13:22]} {[%emt 00:00:02]} 24. Bc3 {[%clk 00:09:15]} {[%emt
00:01:27]} Bf6 {[%clk 00:12:56]} {[%emt 00:00:32]} 25. Nh5 {[%clk 00:08:30]}
{[%emt 00:00:50]} Qe3 {[%clk 00:12:36]} {[%emt 00:00:25]} 26. Nxf6+ {[%clk
00:08:04]} {[%emt 00:00:31]} gxf6 {[%clk 00:12:35]} {[%emt 00:00:05]} 27. Qd2
{[%clk 00:07:13]} {[%emt 00:00:53]} Qg3 {[%clk 00:12:04]} {[%emt 00:00:38]} 28.
Bxe5 {[%clk 00:07:12]} {[%emt 00:00:07]} 1-0

[Event "MCR rapid mládeže 2023 U16"]
[Site "Harachov, Czech Republic"]
[Date "2023.09.09"]
[Round "6.7"]
[White "Popov, Roman"]
[Black "Srba, Daniel"]
[Result "1-0"]
[TimeControl "20min+5s/move"]
[WhiteElo "1751"]
[BlackElo "1259"]

1. d4 {[%clk 00:20:05]} {[%emt 00:00:05]} d5 {[%clk 00:20:09]} {[%emt
00:00:01]} 2. c4 {[%clk 00:20:09]} e6 {[%clk 00:20:13]} 3. Nc3 {[%clk
00:20:13]} {[%emt 00:00:02]} Nf6 {[%clk 00:20:16]} {[%emt 00:00:02]} 4. cxd5
{[%emt 00:00:03]} exd5 {[%clk 00:20:19]} {[%emt 00:00:02]} 5. Bg5 {[%clk
00:20:20]} {[%emt 00:00:01]} c6 {[%clk 00:20:18]} {[%emt 00:00:05]} 6. e3
{[%clk 00:20:23]} {[%emt 00:00:02]} Be7 {[%clk 00:20:17]} {[%emt 00:00:06]} 7.
Bd3 {[%clk 00:20:26]} {[%emt 00:00:02]} O-O {[%clk 00:20:11]} {[%emt 00:00:11]}
8. Qc2 {[%clk 00:20:30]} {[%emt 00:00:02]} h6 {[%clk 00:19:50]} {[%emt
00:00:25]} 9. Bh4 {[%emt 00:00:11]} Nbd7 {[%clk 00:19:24]} {[%emt 00:00:28]} 10.
Nge2 {[%clk 00:20:22]} a6 {[%clk 00:19:25]} {[%emt 00:00:13]} 11. O-O {[%clk
00:20:10]} Re8 {[%clk 00:18:57]} {[%emt 00:00:50]} 12. Rae1 {[%emt 00:00:22]}
Nb6 {[%clk 00:18:52]} 13. f3 {[%clk 00:19:12]} {[%emt 00:00:56]} Be6 {[%clk
00:18:28]} {[%emt 00:00:30]} 14. e4 {[%clk 00:17:54]} {[%emt 00:01:22]} Nc4
{[%clk 00:17:12]} {[%emt 00:01:21]} 15. Bf2 {[%clk 00:16:02]} {[%emt 00:01:57]}
b5 {[%clk 00:16:21]} {[%emt 00:00:56]} 16. e5 {[%clk 00:15:38]} {[%emt
00:00:30]} Nd7 {[%clk 00:16:05]} {[%emt 00:00:16]} 17. f4 {[%clk 00:15:08]}
{[%emt 00:00:35]} Ndb6 {[%clk 00:15:28]} {[%emt 00:00:46]} 18. f5 {[%clk
00:14:14]} {[%emt 00:00:59]} Bc8 {[%clk 00:15:19]} {[%emt 00:00:14]} 19. e6
{[%clk 00:11:19]} {[%emt 00:03:01]} f6 {[%clk 00:15:14]} {[%emt 00:00:10]} 20.
Nf4 {[%clk 00:10:54]} {[%emt 00:00:29]} Bd6 {[%clk 00:14:54]} {[%emt 00:00:25]}
21. Nh5 {[%clk 00:09:53]} {[%emt 00:01:06]} Ra7 {[%clk 00:14:43]} {[%emt
00:00:17]} 22. Qe2 {[%clk 00:09:44]} {[%emt 00:00:13]} Rf8 {[%clk 00:13:47]}
{[%emt 00:01:01]} 23. Bg3 {[%clk 00:08:37]} {[%emt 00:01:12]} Re7 {[%clk
00:12:47]} {[%emt 00:01:05]} 24. Bxd6 {[%clk 00:08:04]} {[%emt 00:00:38]} Nxd6
{[%clk 00:12:49]} {[%emt 00:00:03]} 25. Nf4 {[%clk 00:07:58]} {[%emt 00:00:10]}
Rfe8 {[%clk 00:12:03]} {[%emt 00:00:51]} 26. Qf2 {[%clk 00:06:48]} {[%emt
00:01:15]} Nbc4 {[%clk 00:11:01]} {[%emt 00:01:07]} 27. b3 {[%clk 00:04:38]}
{[%emt 00:02:15]} Nb6 {[%clk 00:10:42]} {[%emt 00:00:24]} 28. Be2 {[%clk
00:04:28]} {[%emt 00:00:15]} b4 {[%clk 00:10:00]} {[%emt 00:00:47]} 29. Nb1
{[%clk 00:04:06]} {[%emt 00:00:26]} Ne4 {[%clk 00:09:55]} {[%emt 00:00:10]} 30.
Qe3 {[%clk 00:03:46]} {[%emt 00:00:25]} a5 {[%clk 00:09:51]} {[%emt 00:00:09]}
31. Bh5 {[%clk 00:03:50]} {[%emt 00:00:06]} Ba6 {[%clk 00:09:34]} {[%emt
00:00:27]} 32. Rf3 {[%clk 00:03:23]} {[%emt 00:00:32]} Ng5 {[%clk 00:08:51]}
{[%emt 00:00:49]} 33. Rf2 {[%clk 00:03:03]} {[%emt 00:00:25]} Ne4 {[%clk
00:08:54]} {[%emt 00:00:02]} 34. Rc2 {[%clk 00:03:03]} {[%emt 00:00:05]} Bb5
{[%clk 00:08:18]} {[%emt 00:00:41]} 35. Bxe8 {[%clk 00:02:50]} {[%emt
00:00:17]} Qxe8 {[%clk 00:08:19]} {[%emt 00:00:04]} 36. Nd2 {[%clk 00:02:36]}
{[%emt 00:00:19]} Nc3 {[%clk 00:08:17]} {[%emt 00:00:08]} 37. Ng6 {[%clk
00:01:58]} {[%emt 00:00:44]} Ra7 {[%clk 00:07:50]} {[%emt 00:00:32]} 38. e7
{[%clk 00:01:17]} {[%emt 00:00:45]} Rd7 {[%clk 00:06:59]} {[%emt 00:00:56]} 39.
Qe6+ {[%clk 00:01:19]} {[%emt 00:00:04]} 1-0

[Event "MCR rapid mládeže 2023 U16"]
[Site "Harachov, Czech Republic"]
[Date "2023.09.09"]
[Round "6.8"]
[White "Zrubek, Dan"]
[Black "Babula, Matej"]
[Result "1/2-1/2"]
[TimeControl "20min+5s/move"]
[WhiteElo "1571"]
[BlackElo "1865"]

1. e4 {[%clk 00:20:08]} c5 {[%clk 00:20:09]} 2. Nf3 {[%clk 00:20:12]} {[%emt
00:00:02]} e6 {[%clk 00:20:11]} {[%emt 00:00:03]} 3. d4 {[%clk 00:20:14]}
{[%emt 00:00:02]} cxd4 {[%clk 00:20:13]} {[%emt 00:00:03]} 4. Nxd4 {[%clk
00:20:18]} {[%emt 00:00:02]} a6 {[%clk 00:19:57]} {[%emt 00:00:21]} 5. Bd3
{[%clk 00:20:03]} {[%emt 00:00:20]} Bc5 {[%clk 00:19:56]} {[%emt 00:00:06]} 6.
Nb3 {[%clk 00:20:05]} {[%emt 00:00:03]} Ba7 {[%clk 00:19:59]} {[%emt 00:00:01]}
7. Qe2 {[%clk 00:19:58]} {[%emt 00:00:12]} Nc6 {[%clk 00:19:13]} {[%emt
00:00:51]} 8. Be3 {[%clk 00:18:56]} {[%emt 00:01:08]} Bxe3 {[%clk 00:18:29]}
{[%emt 00:00:49]} 9. Qxe3 {[%clk 00:18:55]} {[%emt 00:00:06]} Nge7 {[%clk
00:18:05]} {[%emt 00:00:29]} 10. Nc3 {[%clk 00:18:34]} {[%emt 00:00:25]} O-O
{[%clk 00:17:48]} {[%emt 00:00:22]} 11. O-O {[%clk 00:16:44]} {[%emt 00:01:55]}
d5 {[%clk 00:16:47]} {[%emt 00:01:06]} 12. exd5 {[%clk 00:15:10]} {[%emt
00:01:39]} Nxd5 {[%clk 00:16:47]} {[%emt 00:00:03]} 13. Nxd5 {[%clk 00:14:53]}
{[%emt 00:00:22]} Qxd5 {[%clk 00:16:49]} {[%emt 00:00:04]} 14. Rad1 {[%clk
00:14:17]} {[%emt 00:00:40]} Qh5 {[%clk 00:14:44]} {[%emt 00:02:10]} 1/2-1/2

[Event "MCR rapid mládeže 2023 U16"]
[Site "Harachov, Czech Republic"]
[Date "2023.09.09"]
[Round "6.9"]
[White "Barteckova, Valerie"]
[Black "Bartova, Hana"]
[Result "0-1"]
[TimeControl "20min+5s/move"]
[WhiteElo "1498"]
[BlackElo "1389"]

1. d4 {[%clk 00:20:08]} {[%emt 00:00:02]} d6 {[%clk 00:19:50]} {[%emt
00:00:20]} 2. Nf3 {[%clk 00:20:09]} {[%emt 00:00:04]} Nd7 {[%clk 00:19:31]}
{[%emt 00:00:24]} 3. Bf4 {[%clk 00:19:49]} {[%emt 00:00:24]} g6 {[%clk
00:19:23]} {[%emt 00:00:14]} 4. c3 {[%clk 00:19:52]} {[%emt 00:00:02]} Bg7
{[%clk 00:19:26]} {[%emt 00:00:02]} 5. e3 {[%clk 00:19:52]} {[%emt 00:00:05]}
e5 {[%clk 00:18:45]} {[%emt 00:00:45]} 6. Bg3 {[%clk 00:19:49]} {[%emt
00:00:08]} Ne7 {[%clk 00:18:22]} {[%emt 00:00:28]} 7. Bd3 {[%clk 00:19:31]}
{[%emt 00:00:23]} Nc6 {[%clk 00:17:51]} {[%emt 00:00:36]} 8. Nbd2 {[%clk
00:19:11]} {[%emt 00:00:24]} d5 {[%clk 00:17:18]} {[%emt 00:00:38]} 9. dxe5
{[%clk 00:18:52]} {[%emt 00:00:24]} Ndxe5 {[%clk 00:17:10]} {[%emt 00:00:14]}
10. Nxe5 {[%clk 00:17:57]} {[%emt 00:01:00]} Nxe5 {[%clk 00:17:12]} {[%emt
00:00:02]} 11. Bxe5 {[%clk 00:17:33]} {[%emt 00:00:29]} Bxe5 {[%clk 00:17:15]}
{[%emt 00:00:03]} 12. Nf3 {[%clk 00:17:37]} {[%emt 00:00:01]} Bg7 {[%clk
00:17:15]} {[%emt 00:00:05]} 13. h3 {[%clk 00:17:41]} {[%emt 00:00:01]} Qd6
{[%clk 00:15:42]} {[%emt 00:01:38]} 14. Qe2 {[%clk 00:16:19]} {[%emt 00:01:26]}
Bd7 {[%clk 00:15:18]} {[%emt 00:00:29]} 15. Nd4 {[%clk 00:15:21]} {[%emt
00:01:03]} a6 {[%clk 00:15:07]} {[%emt 00:00:16]} 16. Qf3 {[%clk 00:14:53]}
{[%emt 00:00:32]} c5 {[%clk 00:14:52]} {[%emt 00:00:21]} 17. Nc2 {[%clk
00:12:53]} {[%emt 00:02:04]} Bc6 {[%clk 00:14:39]} {[%emt 00:00:19]} 18. Rd1
{[%clk 00:10:05]} {[%emt 00:02:53]} Qe6 {[%clk 00:13:49]} {[%emt 00:00:55]} 19.
Qe2 {[%clk 00:06:59]} {[%emt 00:03:11]} c4 {[%clk 00:13:35]} {[%emt 00:00:19]}
20. Nd4 {[%clk 00:06:39]} {[%emt 00:00:25]} Bxd4 {[%clk 00:11:31]} {[%emt
00:02:09]} 21. exd4 {[%clk 00:06:42]} {[%emt 00:00:01]} cxd3 {[%clk 00:11:33]}
{[%emt 00:00:04]} 22. Qxe6+ {[%clk 00:06:45]} {[%emt 00:00:01]} fxe6 {[%clk
00:11:37]} {[%emt 00:00:01]} 23. Rxd3 {[%clk 00:06:49]} {[%emt 00:00:01]} Bb5
{[%clk 00:11:32]} {[%emt 00:00:10]} 24. Re3 {[%clk 00:06:51]} {[%emt 00:00:03]}
Kd7 {[%clk 00:11:31]} {[%emt 00:00:06]} 25. Kd2 {[%clk 00:06:55]} {[%emt
00:00:02]} Rae8 {[%clk 00:11:28]} {[%emt 00:00:08]} 26. Rhe1 {[%clk 00:06:59]}
{[%emt 00:00:01]} Re7 {[%clk 00:11:32]} {[%emt 00:00:01]} 27. Re5 {[%clk
00:07:02]} {[%emt 00:00:01]} Rf8 {[%clk 00:11:22]} {[%emt 00:00:15]} 28. f3
{[%clk 00:06:42]} {[%emt 00:00:26]} Rf5 {[%clk 00:11:16]} {[%emt 00:00:11]} 29.
Rxf5 {[%clk 00:06:01]} {[%emt 00:00:46]} exf5 {[%clk 00:11:13]} {[%emt
00:00:09]} 30. Re5 {[%clk 00:05:41]} {[%emt 00:00:25]} Rxe5 {[%clk 00:11:05]}
{[%emt 00:00:13]} 31. dxe5 {[%clk 00:05:44]} {[%emt 00:00:01]} Ke6 {[%clk
00:10:51]} {[%emt 00:00:20]} 32. f4 {[%clk 00:05:48]} Bf1 {[%clk 00:10:55]}
{[%emt 00:00:02]} 33. g3 {[%clk 00:05:51]} {[%emt 00:00:02]} Bxh3 {[%clk
00:10:57]} {[%emt 00:00:02]} 34. Ke2 {[%clk 00:05:45]} {[%emt 00:00:11]} g5
{[%clk 00:10:37]} {[%emt 00:00:25]} 35. Kf3 {[%clk 00:05:39]} {[%emt 00:00:11]}
Bg4+ {[%clk 00:10:35]} {[%emt 00:00:07]} 36. Ke3 {[%clk 00:05:40]} {[%emt
00:00:04]} gxf4+ {[%clk 00:10:35]} {[%emt 00:00:06]} 37. gxf4 {[%clk 00:05:25]}
{[%emt 00:00:19]} h5 {[%clk 00:10:38]} {[%emt 00:00:02]} 38. Kf2 {[%clk
00:05:29]} h4 {[%clk 00:10:35]} {[%emt 00:00:08]} 39. Kg2 {[%clk 00:05:34]} a5
{[%clk 00:09:35]} {[%emt 00:01:06]} 40. a3 {[%clk 00:05:18]} {[%emt 00:00:21]}
b5 {[%clk 00:09:26]} {[%emt 00:00:14]} 41. b4 {[%clk 00:05:17]} {[%emt
00:00:06]} axb4 {[%clk 00:08:26]} {[%emt 00:01:05]} 42. axb4 {[%clk 00:05:21]}
d4 {[%clk 00:08:00]} {[%emt 00:00:32]} 43. cxd4 {[%clk 00:05:07]} {[%emt
00:00:20]} Kd5 {[%clk 00:08:04]} 44. Kh2 {[%clk 00:05:04]} {[%emt 00:00:08]}
Kxd4 {[%clk 00:07:57]} {[%emt 00:00:12]} 45. e6 {[%clk 00:05:08]} Ke4 {[%clk
00:07:29]} {[%emt 00:00:33]} 46. e7 {[%clk 00:05:04]} {[%emt 00:00:09]} Bh5
{[%clk 00:07:32]} {[%emt 00:00:02]} 47. Kh3 {[%clk 00:05:08]} Kxf4 {[%clk
00:07:34]} {[%emt 00:00:05]} 48. Kxh4 {[%clk 00:05:12]} Be8 {[%clk 00:07:35]}
{[%emt 00:00:04]} 49. Kh3 {[%clk 00:05:14]} {[%emt 00:00:02]} Ke3 {[%clk
00:07:35]} {[%emt 00:00:06]} 50. Kg3 {[%clk 00:05:17]} {[%emt 00:00:01]} f4
{[%clk 00:07:34]} {[%emt 00:00:06]} 51. Kg2 {[%clk 00:05:22]} Ke2 {[%clk
00:07:36]} {[%emt 00:00:04]} 0-1